bitfinex-derivatives/quotes_ETHF0:USTF0_20241105
["timestamp","ask_amount","ask_price","bid_price","bid_amount"]
[1730828833364,2.65081702,2456.9,2454.7,0.428]
[1730828833365,0.204,2456.3,2455.4,3.91319607]
[1730828833570,3.2078,2456.6,2455.7,3.2078]
[1730828833865,7.12099607,2456.3,2455.8,1.213]
[1730828834059,0.40716,2456.2,2455.8,1.213]
[1730828834255,0.40717,2456.1,2455.7,3.2078]
[1730828834562,0.40716,2456.2,2455.9,1.213]
[1730828834961,4.0712,2456.1,2455.7,4.4208]
[1730828835162,7.12099607,2456.3,2455.7,4.4208]
[1730828835163,0.40715,2456.2,2455.7,4.4208]
[1730828835666,4.072,2456.1,2455.7,3.2078]
[1730828835856,3.61503,2455.8,2455.5,1.213]
[1730828836166,3.61503,2455.8,2455.4,1.213]
[1730828836167,4.072,2455.7,2455.4,1.213]
[1730828836363,3.61503,2455.8,2455.4,1.213]
[1730828836564,40.8,2455.6,2455.3,1.213]
[1730828836757,40.8,2455.6,2455.3,1.62029]
[1730828836957,40.8,2455.6,2455.3,1.213]
[1730828837364,40.8,2455.6,2455.0,1.213]
[1730828837365,0.40729,2455.4,2455.0,1.213]
[1730828837565,3.2078,2455.4,2455.0,1.213]
[1730828838468,3.2078,2455.4,2454.8,4.1393]
[1730828838469,0.40731,2455.3,2454.8,4.1393]
[1730828838665,3.2078,2455.4,2454.8,4.1393]
[1730828838666,3.2078,2455.4,2454.9,1.213]
[1730828838877,40.8,2455.6,2454.9,1.213]
[1730828839364,0.40729,2455.4,2454.9,1.213]
[1730828839970,0.4073,2455.3,2454.9,1.213]
[1730828840168,0.40729,2455.4,2454.9,1.281]
[1730828840764,0.40729,2455.4,2454.9,1.68836]
[1730828840966,3.2078,2455.5,2454.8,3.2078]
[1730828841268,3.91319607,2455.3,2454.8,3.2078]
[1730828841472,0.40734,2455.1,2454.8,3.2078]
[1730828841781,3.91319607,2455.3,2454.8,3.2078]
[1730828841782,7.98679607,2455.3,2454.8,3.2078]
[1730828841962,3.61512,2455.2,2454.7,0.40738]
[1730828842157,3.61512,2455.2,2454.6,1.6884]
[1730828842158,3.2078,2455.2,2454.6,1.6884]
[1730828842356,3.2078,2455.2,2454.5,1.281]
[1730828842561,0.40736,2455.0,2454.6,0.40741]
[1730828842967,4.0736,2455.0,2454.4,4.4888]
[1730828843269,0.40735,2455.0,2454.5,0.40743]
[1730828843475,0.40735,2455.0,2454.7,0.4074]
[1730828843866,4.0736,2454.9,2454.7,0.4074]
[1730828844279,4.0736,2454.8,2454.6,0.40741]
[1730828844568,0.40736,2455.0,2454.6,0.4074]
[1730828844770,0.40734,2455.1,2454.7,0.40738]
[1730828844977,3.2078,2455.2,2454.8,0.40737]
[1730828844978,3.61513,2455.2,2454.8,0.40737]
[1730828845272,7.2814,2455.2,2454.8,0.40737]
[1730828845565,7.2814,2455.2,2454.4,4.4888]
[1730828845772,0.40736,2455.0,2454.6,0.4074]
[1730828846372,0.40736,2455.0,2454.7,0.4074]
[1730828846570,0.40736,2455.0,2454.4,4.4888]
[1730828847073,0.40736,2455.0,2454.7,0.40739]
[1730828847271,0.40736,2455.0,2454.6,0.4074]
[1730828847776,3.2078,2455.2,2454.4,4.4888]
[1730828847972,0.40736,2455.0,2454.5,0.40743]
[1730828848175,0.40736,2455.0,2454.6,0.4074]
[1730828848674,0.40736,2455.0,2454.7,0.40739]
[1730828848868,0.40736,2455.0,2454.4,4.4888]
[1730828848869,0.40736,2455.0,2454.6,0.4074]
[1730828849068,0.40736,2455.0,2454.7,0.4074]
[1730828849268,3.2078,2455.2,2454.7,0.40739]
[1730828849472,0.40735,2455.0,2454.7,0.40739]
[1730828849674,0.40735,2455.0,2454.6,0.4074]
[1730828849866,0.40735,2455.0,2454.4,4.4888]
[1730828850071,4.00819607,2455.3,2454.4,4.4888]
[1730828850271,4.00819607,2455.3,2455.2,0.40731]
[1730828850272,0.095,2455.3,2455.2,0.40731]
[1730828850469,0.40727,2455.5,2455.2,0.40731]
[1730828851090,4.0728,2455.4,2454.9,0.4622]
[1730828851268,3.91319607,2455.4,2454.9,0.4622]
[1730828851465,0.40733,2455.1,2454.9,0.4622]
[1730828851671,3.91319607,2455.1,2454.5,1.281]
[1730828851873,3.91319607,2455.1,2454.7,0.40739]
[1730828851874,0.40737,2454.9,2454.7,0.40739]
[1730828852075,0.40736,2455.0,2454.7,0.40739]
[1730828852378,0.40735,2455.0,2454.5,1.281]
[1730828852679,0.40734,2455.1,2454.5,1.281]
[1730828852878,0.40734,2455.1,2454.6,0.40741]
[1730828853082,0.40736,2455.0,2454.7,0.40739]
[1730828854381,0.40735,2455.0,2454.6,0.4074]
[1730828855097,0.40735,2455.0,2454.7,0.4074]
[1730828855581,0.40735,2455.0,2454.5,1.281]
[1730828855775,0.40737,2454.9,2454.6,0.4074]
[1730828855976,7.12099607,2455.1,2454.4,4.89624]
[1730828856176,0.4074,2454.7,2454.4,4.89624]
[1730828857194,0.40737,2454.9,2454.6,0.40741]
[1730828857682,0.40738,2454.8,2454.5,0.40742]
[1730828858079,0.40738,2454.8,2454.4,3.2078]
[1730828858279,0.40738,2454.8,2454.4,3.61524]
[1730828858485,40.8,2455.0,2454.4,3.61524]
[1730828858783,3.91319607,2454.7,2454.4,3.2078]
[1730828859082,3.91319607,2454.7,2454.2,0.4622]
[1730828859274,0.40746,2454.4,2454.2,0.4622]
[1730828859470,0.40746,2454.4,2454.2,0.86968]
[1730828860401,3.91319607,2454.7,2454.2,0.86968]
[1730828860582,0.40744,2454.5,2454.2,0.86968]
[1730828860883,0.40744,2454.5,2454.2,0.86967]
[1730828861987,7.2822,2454.4,2454.2,0.4622]
[1730828862180,0.40746,2454.3,2454.2,0.4622]
[1730828862581,4.48186,2454.3,2454.2,0.4622]
[1730828864679,0.40751,2454.0,2453.7,1.50386668]
[1730828864876,0.40751,2454.0,2453.8,0.40754]
[1730828865188,0.40753,2453.9,2453.8,0.40754]
[1730828865497,3.91319607,2454.2,2453.8,0.40754]
[1730828865676,7.12099607,2454.4,2453.7,0.8895]
[1730828865877,0.40749,2454.2,2454.0,0.40751]
[1730828866082,7.12099607,2454.4,2453.8,3.2078]
[1730828866282,0.40752,2454.0,2453.8,3.61534]
[1730828866583,0.40751,2454.1,2453.8,3.61534]
[1730828867183,0.40751,2454.1,2453.8,0.40754]
[1730828867380,0.40752,2454.0,2453.8,0.40754]
[1730828867585,0.40751,2454.1,2453.7,0.8895]
[1730828867886,0.40751,2454.1,2453.8,0.40753]
[1730828868282,0.40746,2454.3,2453.7,0.8895]
[1730828868483,0.40752,2454.0,2453.8,0.40755]
[1730828868685,7.12099607,2454.4,2453.8,0.40755]
[1730828868883,0.40751,2454.1,2453.8,0.40755]
[1730828869389,0.4075,2454.1,2453.9,0.40752]
[1730828869692,7.12099607,2454.4,2453.7,0.8895]
[1730828869982,0.4075,2454.1,2453.9,0.40752]
[1730828870185,0.095,2454.6,2453.8,4.22665]
[1730828870386,0.095,2454.6,2454.5,0.40743]
[1730828870600,40.8,2455.0,2454.2,2.25568]
[1730828870787,40.8,2455.0,2454.8,0.40737]
[1730828872593,40.8,2455.0,2454.9,0.40736]
[1730828873192,40.8,2455.0,2454.7,3.2078]
[1730828873193,3.91319607,2455.4,2455.1,0.40733]
[1730828873390,3.91319607,2455.4,2454.7,3.2078]
[1730828873688,40.8,2455.3,2455.2,0.40731]
[1730828873890,6.12569832,2455.9,2455.0,3.2078]
[1730828874087,4.00819607,2455.9,2455.6,0.40724]
[1730828874383,40.8,2455.8,2455.6,0.40724]
[1730828874585,40.8,2455.8,2455.4,3.2078]
[1730828874586,40.8,2455.8,2455.5,0.8783]
[1730828874891,3.91319607,2455.6,2455.5,0.8783]
[1730828875482,0.40727,2455.5,2455.1,1.237]
[1730828875892,7.12099607,2455.6,2455.1,1.237]
[1730828876084,40.8,2455.5,2455.1,1.237]
[1730828876381,40.8,2455.5,2455.0,0.4421]
[1730828876382,3.91319607,2455.4,2455.0,0.4421]
[1730828876587,3.91319607,2455.4,2454.9,0.4362]
[1730828876588,0.40731,2455.2,2454.9,0.4362]
[1730828876785,0.40731,2455.3,2454.9,0.4362]
[1730828877093,0.40732,2455.2,2454.9,0.4362]
[1730828877681,3.91319607,2455.4,2454.7,3.6708]
[1730828877682,7.98679607,2455.1,2454.7,3.6708]
[1730828877890,7.12099607,2455.1,2454.7,0.463]
[1730828878091,0.40736,2455.0,2454.7,0.463]
[1730828878687,7.52833607,2455.1,2454.7,0.8704]
[1730828878887,0.40736,2455.0,2454.7,0.463]
[1730828880191,0.40735,2455.0,2454.7,0.463]
[1730828881186,0.40735,2455.0,2454.7,0.87039]
[1730828881992,2.65081702,2455.3,2454.7,0.463]
[1730828881993,2.11750225,2455.2,2454.7,0.463]
[1730828882191,2.52482225,2455.2,2454.9,0.40736]
[1730828882390,2.52482225,2455.2,2454.5,3.6759]
[1730828882391,0.40739,2454.8,2454.5,4.08333]
[1730828882900,2.52483225,2455.1,2454.8,0.40738]
[1730828883197,9.64581832,2455.2,2454.9,0.40736]
[1730828883685,0.40734,2455.1,2454.5,3.6759]
[1730828883885,0.40734,2455.1,2454.7,0.40738]
[1730828884293,0.40734,2455.1,2454.8,0.40737]
[1730828884497,9.23849832,2455.2,2454.8,0.40737]
[1730828884686,9.64581832,2455.2,2454.9,0.40736]
[1730828884889,7.52831607,2455.2,2454.9,0.40736]
[1730828885495,7.52831607,2455.2,2454.8,0.40737]
[1730828885692,2.11750225,2455.3,2454.8,3.2078]
[1730828886001,43.32477225,2455.5,2455.1,0.40732]
[1730828886192,47.23796832,2455.5,2455.1,0.40732]
[1730828886391,46.83069832,2455.5,2455.0,0.4591]
[1730828886686,40.8,2455.5,2455.4,0.40728]
[1730828886999,40.8,2455.5,2455.0,0.4591]
[1730828887186,3.91319607,2455.1,2455.0,0.4591]
[1730828887389,4.32052607,2455.1,2455.0,0.4591]
[1730828887696,4.32052607,2455.1,2454.9,0.4739]
[1730828887697,0.40735,2455.0,2454.9,0.4739]
[1730828888287,0.40735,2455.0,2454.5,5.32032]
[1730828888288,0.40738,2454.8,2454.5,5.32032]
[1730828888491,3.91319607,2454.9,2454.5,4.9129]
[1730828888688,3.91319607,2454.9,2454.7,0.40739]
[1730828888892,6.43801832,2455.2,2454.9,0.40736]
[1730828889196,4.32051607,2455.2,2454.9,0.40736]
[1730828889389,8.39411607,2455.2,2454.9,0.40736]
[1730828889591,3.91319607,2455.2,2455.0,0.40734]
[1730828889793,4.32051607,2455.2,2454.9,0.40736]
[1730828890196,5.32530225,2455.3,2455.1,0.40733]
[1730828890397,3.2078,2455.3,2455.1,0.40733]
[1730828890601,7.6879,2455.3,2455.0,0.40734]
[1730828890801,3.2078,2455.3,2455.1,0.40733]
[1730828891292,3.2078,2455.3,2454.6,1.01854]
[1730828891491,40.8,2455.5,2455.4,0.40728]
[1730828892609,3.2078,2455.8,2455.7,0.40723]
[1730828893003,44.0078,2455.8,2455.6,0.40723]
[1730828893296,0.411,2456.4,2455.9,0.40719]
[1730828893297,4.32033607,2456.3,2455.9,0.40719]
[1730828893807,4.32033607,2456.3,2455.7,3.2078]
[1730828893808,40.8,2456.2,2455.8,0.4333]
[1730828894005,40.8,2456.2,2456.0,0.40718]
[1730828894323,40.8,2456.2,2455.9,0.4555]
[1730828894499,40.8,2456.2,2456.0,0.40717]
[1730828894696,40.8,2456.2,2455.9,0.86268]
[1730828894900,40.8,2456.2,2456.0,0.40717]
[1730828895091,40.8,2456.2,2456.1,0.40716]
[1730828896295,40.8,2456.2,2456.0,3.6718]
[1730828896296,0.4071,2456.5,2456.2,0.40714]
[1730828896499,3.91319607,2456.6,2456.4,0.40711]
[1730828896696,7.52805607,2456.8,2456.5,0.4071]
[1730828896895,7.12099607,2456.8,2456.1,1.42505]
[1730828897098,3.2078,2456.8,2456.7,0.40707]
[1730828897293,4.02319607,2457.1,2456.7,3.2078]
[1730828897294,3.91319607,2457.1,2456.7,3.2078]
[1730828897505,4.32019607,2457.1,2456.8,0.40704]
[1730828897814,3.91319607,2457.1,2456.8,0.40704]
[1730828898311,3.91319607,2457.1,2456.9,0.40703]
[1730828898513,3.91319607,2457.1,2456.8,0.40703]
[1730828899104,3.91319607,2457.1,2456.8,0.85813]
[1730828899507,3.91319607,2457.1,2456.9,0.40703]
[1730828900010,3.91319607,2457.1,2456.8,0.85814]
[1730828900909,3.91319607,2457.1,2456.9,0.40703]
[1730828901110,3.91319607,2457.1,2456.8,0.85814]
[1730828901497,40.8,2457.0,2456.9,0.40703]
[1730828901898,40.8,2457.0,2456.8,0.4511]
[1730828902107,0.40703,2456.9,2456.8,0.4511]
[1730828902304,4.32022607,2456.9,2456.7,3.2078]
[1730828902501,0.40707,2456.7,2456.3,4.1136]
[1730828902708,40.8,2456.6,2456.3,1.31292]
[1730828903205,41.20708,2456.6,2456.3,1.31292]
[1730828903410,45.12028607,2456.6,2456.3,0.9058]
[1730828903606,44.71319607,2456.6,2456.4,0.40711]
[1730828904313,40.8,2456.6,2456.5,0.4071]
[1730828905108,40.8,2456.6,2456.5,4.4775]
[1730828905306,40.8,2456.6,2456.3,4.1136]
[1730828905502,3.91319607,2456.8,2456.5,0.4071]
[1730828905709,3.91319607,2456.8,2456.6,0.40707]
[1730828906005,40.8,2456.7,2456.3,4.1136]
[1730828906712,41.20707,2456.7,2456.4,0.40711]
[1730828909206,41.20707,2456.7,2456.3,4.1136]
[1730828909207,0.40711,2456.5,2456.3,4.1136]
[1730828909404,0.4071,2456.5,2456.3,3.656]
[1730828909613,0.40712,2456.4,2456.3,3.656]
[1730828909907,0.40712,2456.4,2456.3,3.2078]
[1730828910110,0.40714,2456.3,2456.0,5.34297]
[1730828910500,0.40714,2456.3,2456.0,4.9358]
[1730828910707,0.40714,2456.3,2456.0,5.34297]
[1730828911905,0.40714,2456.3,2456.0,4.87897]
[1730828912916,0.40712,2456.4,2456.1,0.40716]
[1730828913125,7.12099607,2456.6,2456.1,0.40716]
[1730828913318,0.40714,2456.3,2456.0,4.87897]
[1730828913513,0.40712,2456.4,2456.1,0.40715]
[1730828913716,7.12099607,2456.6,2456.1,0.40715]
[1730828914014,0.40713,2456.3,2456.0,4.87897]
[1730828914212,7.12099607,2456.6,2456.0,4.4718]
[1730828914413,0.40712,2456.4,2456.1,0.40715]
[1730828914610,0.40712,2456.4,2456.0,4.4718]
[1730828914611,7.12099607,2456.6,2456.0,4.4718]
[1730828914916,0.4071,2456.5,2456.0,4.4718]
[1730828915218,7.52808607,2456.6,2456.3,0.40713]
[1730828915414,0.4071,2456.5,2456.3,0.40713]
[1730828915715,0.4071,2456.5,2456.2,0.40714]
[1730828916422,7.12099607,2456.6,2456.1,0.40716]
[1730828916423,0.40714,2456.3,2456.1,0.40716]
[1730828916616,7.12099607,2456.6,2456.0,4.4718]
[1730828916832,7.12099607,2456.6,2456.2,0.40714]
[1730828916833,0.40711,2456.5,2456.2,0.40714]
[1730828917316,0.40712,2456.4,2456.1,0.40715]
[1730828918717,7.12099607,2456.6,2456.0,4.4718]
[1730828919315,0.40714,2456.3,2456.1,0.40716]
[1730828920517,0.40715,2456.2,2456.0,0.40718]
[1730828920818,0.40716,2456.2,2455.9,0.84489]
[1730828921009,0.40715,2456.2,2456.0,0.40717]
[1730828921410,6.38462122,2456.3,2455.9,0.4377]
[1730828921714,0.40715,2456.2,2456.0,0.40717]
[1730828922423,6.79176122,2456.3,2456.1,0.40716]
[1730828922824,0.40716,2456.2,2456.0,0.40717]
[1730828923719,0.40716,2456.2,2455.9,0.4377]
[1730828923921,6.38462122,2456.3,2456.1,0.40716]
[1730828924119,0.40715,2456.2,2456.1,0.40716]
[1730828926520,3.58396122,2456.3,2456.1,0.40716]
[1730828927425,0.40715,2456.2,2456.1,0.40716]
[1730828927923,0.40715,2456.2,2456.0,0.40717]
[1730828928119,6.38462122,2456.3,2456.0,0.40717]
[1730828928316,0.40716,2456.2,2456.0,0.40717]
[1730828928521,6.38462122,2456.3,2455.9,0.4377]
[1730828928729,6.79176122,2456.3,2456.1,0.40715]
[1730828929318,6.79176122,2456.3,2455.9,0.4377]
[1730828929631,3.2078,2456.3,2455.9,0.4377]
[1730828929931,3.2078,2456.3,2456.2,0.40715]
[1730828930228,3.17682122,2456.5,2455.9,1.45569]
[1730828930532,3.17682122,2456.5,2456.3,0.40712]
[1730828930839,3.17682122,2456.5,2456.0,3.2078]
[1730828931138,3.58392122,2456.5,2456.3,0.40712]
[1730828931321,3.58392122,2456.5,2456.0,3.2078]
[1730828931523,3.58392122,2456.5,2456.2,0.40713]
[1730828931927,3.58392122,2456.5,2456.3,0.40713]
[1730828932123,3.58392122,2456.5,2456.0,3.2078]
[1730828932623,0.40713,2456.4,2456.0,3.2078]
[1730828933130,3.17682122,2456.5,2456.3,0.40713]
[1730828933131,3.58392122,2456.5,2456.3,0.40713]
[1730828933830,0.40713,2456.4,2456.1,0.40716]
[1730828934022,3.17682122,2456.5,2456.1,0.40716]
[1730828934223,0.40713,2456.3,2456.1,0.40716]
[1730828934424,0.40713,2456.3,2455.9,0.4377]
[1730828934425,0.40718,2456.0,2455.9,0.4377]
[1730828934625,0.40718,2456.1,2455.9,0.4377]
[1730828934824,3.17682122,2456.0,2455.9,0.4377]
[1730828935224,3.17682122,2456.2,2455.9,0.8449]
[1730828935430,0.40717,2456.1,2455.9,0.8449]
[1730828935824,0.40717,2456.1,2455.9,0.4377]
[1730828936026,0.40718,2456.0,2455.9,0.4377]
[1730828937124,0.40718,2456.1,2455.9,0.4377]
[1730828937643,0.40718,2456.0,2455.9,0.4377]
[1730828938429,5.29595159,2456.2,2455.8,0.4397]
[1730828938824,0.40719,2456.0,2455.8,0.84691]
[1730828939133,5.29595159,2456.2,2455.8,0.4397]
[1730828939342,0.40719,2456.0,2455.8,0.84691]
[1730828939626,2.11913037,2456.1,2455.8,0.4397]
[1730828939829,0.40718,2456.1,2455.9,0.40719]
[1730828940134,0.40718,2456.1,2455.8,0.4397]
[1730828940135,0.40719,2456.0,2455.8,0.8469]
[1730828940335,5.29595159,2456.2,2455.8,0.4397]
[1730828940535,5.29595159,2456.2,2455.8,0.84691]
[1730828940536,0.40719,2456.0,2455.8,0.84691]
[1730828940833,5.70311159,2456.2,2456.0,0.40718]
[1730828941026,5.29595159,2456.2,2455.8,0.4397]
[1730828941233,2.11913037,2456.1,2455.8,0.4397]
[1730828941533,0.40718,2456.0,2455.8,0.84691]
[1730828941736,2.11913037,2456.1,2455.8,0.4397]
[1730828941931,5.29595159,2456.2,2455.8,0.8469]
[1730828942131,0.40719,2456.0,2455.8,0.8469]
[1730828942834,2.11913037,2456.1,2455.8,0.4397]
[1730828943036,0.40719,2456.0,2455.8,0.84691]
[1730828943629,2.52630037,2456.1,2455.8,0.84691]
[1730828944033,2.52630037,2456.1,2455.8,0.4397]
[1730828944235,2.11913037,2456.1,2455.8,0.4397]
[1730828944532,3.58402122,2455.9,2455.8,0.4397]
[1730828945134,5.70315159,2455.9,2455.8,0.4397]
[1730828946143,2.52633037,2455.9,2455.8,0.4397]
[1730828947336,0.4072,2455.9,2455.8,0.4397]
[1730828948037,2.11913037,2455.9,2455.8,0.84691]
[1730828948239,3.61499,2456.0,2455.8,0.84691]
[1730828948240,5.73412037,2456.0,2455.8,0.84691]
[1730828948444,3.61499,2456.0,2455.8,0.84691]
[1730828948837,3.2078,2456.0,2455.9,0.4072]
[1730828949040,2.11913037,2456.3,2456.2,0.40715]
[1730828949241,2.11913037,2456.4,2456.2,0.40715]
[1730828949543,2.52625037,2456.4,2456.0,3.6697]
[1730828949746,2.52625037,2456.4,2456.1,0.40715]
[1730828949939,2.52625037,2456.4,2456.0,3.6697]
[1730828950142,2.52625037,2456.4,2456.1,0.40715]
[1730828950946,2.52627037,2456.3,2456.0,4.07687]
[1730828951447,2.11913037,2456.3,2456.1,0.40716]
[1730828951745,2.11913037,2456.4,2456.2,0.40715]
[1730828953349,2.11913037,2456.4,2456.0,0.4619]
[1730828953350,2.11913037,2456.3,2456.0,0.4619]
[1730828953550,2.11913037,2456.3,2456.2,0.40715]
[1730828954348,2.11913037,2456.4,2456.2,4.0712]
[1730828954552,2.11913037,2456.4,2456.3,0.40713]
[1730828954952,2.11913037,2456.4,2456.3,4.47833]
[1730828955360,2.11913037,2456.5,2456.4,0.40712]
[1730828955563,2.11913037,2456.6,2456.5,0.4071]
[1730828957056,42.91913037,2456.7,2456.6,0.40708]
[1730828957453,42.91913037,2456.7,2456.4,3.646]
[1730828957655,3.05601297,2456.5,2456.4,0.4382]
[1730828957851,2.12269294,2456.5,2456.4,0.4382]
[1730828958265,6.36802786,2456.5,2456.4,0.84532]
[1730828958861,6.36802786,2456.5,2456.4,4.91652]
[1730828959057,1.3957897,2456.5,2456.4,8.12432]
[1730828959279,5.85671297,2456.9,2456.8,0.40705]
[1730828959280,3.2078,2456.9,2456.8,0.40705]
[1730828959456,40.8,2457.0,2456.9,0.40703]
[1730828959861,40.8,2457.0,2456.9,4.47743]
[1730828960369,6.26751297,2457.5,2457.2,0.40697]
[1730828960558,3.93054,2457.5,2457.1,0.40698]
[1730828960754,40.8,2457.4,2457.2,0.40697]
[1730828960955,40.8,2457.4,2457.3,0.40697]
[1730828961261,3.82318297,2457.9,2457.5,0.40693]
[1730828961556,40.8,2457.8,2457.5,0.40693]
[1730828961755,40.8,2457.8,2457.3,3.2078]
[1730828961963,3.58367122,2458.1,2457.7,0.40689]
[1730828962262,0.40686,2458.0,2457.6,0.40691]
[1730828962464,40.8,2457.9,2457.6,0.40691]
[1730828962664,40.8,2457.9,2457.7,0.4069]
[1730828962966,40.8,2457.9,2457.4,0.4594]
[1730828962967,40.8,2457.9,2457.6,0.40691]
[1730828963559,40.8,2457.9,2457.7,0.4069]
[1730828964363,40.8,2457.9,2457.4,0.4594]
[1730828964865,40.8,2457.9,2457.7,0.40689]
[1730828965556,40.8,2457.9,2457.8,0.40688]
[1730828965958,40.8,2457.9,2457.8,4.0688]
[1730828966364,0.40684,2458.1,2457.8,4.0688]
[1730828966562,0.40686,2458.0,2457.6,3.61471]
[1730828966765,40.8,2458.0,2457.6,3.2078]
[1730828966966,0.40692,2457.6,2457.4,0.4594]
[1730828967353,6.82622122,2457.9,2457.4,0.4594]
[1730828967570,0.40691,2457.7,2457.4,0.4594]
[1730828968065,0.40692,2457.6,2457.4,0.4594]
[1730828968265,6.82622122,2457.9,2457.4,0.4594]
[1730828968463,0.40693,2457.5,2457.4,0.4594]
[1730828971474,0.40699,2457.2,2457.0,4.81481]
[1730828971775,0.40702,2457.0,2456.8,1.60704]
[1730828972267,0.407,2457.1,2456.9,0.40703]
[1730828972466,4.06492122,2457.4,2456.8,1.2]
[1730828972661,4.06492122,2457.4,2457.0,0.40701]
[1730828972866,0.407,2457.1,2456.9,0.40702]
[1730828973670,0.407,2457.1,2456.8,1.60704]
[1730828973872,0.407,2457.1,2456.7,3.6601]
[1730828974080,0.407,2457.1,2456.8,1.60703]
[1730828974668,4.50512122,2457.4,2456.8,1.60703]
[1730828974878,0.40701,2457.1,2456.8,1.60705]
[1730828975176,0.40702,2457.0,2456.8,1.60705]
[1730828975571,5.52253122,2457.4,2456.7,3.6601]
[1730828975775,0.40703,2456.9,2456.8,1.2]
[1730828977476,10.45502122,2456.9,2456.3,1.3808771]
[1730828977679,1.3283,2457.4,2456.3,1.3808771]
[1730828977680,0.40712,2456.4,2456.3,0.9427771]
[1730828977874,0.40712,2456.4,2456.3,0.5132771]
[1730828981169,40.8,2456.5,2456.2,0.40715]
[1730828981479,40.8,2456.5,2455.8,0.8929]
[1730828981480,0.40716,2456.1,2455.8,0.8929]
[1730828981673,3.17682122,2455.9,2455.3,3.2078]
[1730828981878,0.40722,2455.8,2455.5,0.40726]
[1730828982176,0.40722,2455.8,2455.6,0.40724]
[1730828982571,3.58403122,2455.9,2455.6,0.40724]
[1730828983180,3.58403122,2455.9,2455.5,0.40726]
[1730828983181,0.40722,2455.8,2455.5,0.40726]
[1730828983877,3.2078,2456.0,2455.4,0.4393]
[1730828984080,3.2078,2456.0,2455.7,0.40722]
[1730828984271,3.61498,2456.0,2455.7,0.40722]
[1730828984472,0.4072,2455.9,2455.7,0.4402]
[1730828985072,3.17682122,2455.9,2455.6,3.2078]
[1730828985269,0.40723,2455.7,2455.4,0.4393]
[1730828986582,0.40725,2455.6,2455.4,0.4393]
[1730828988176,0.4705,2455.8,2455.4,0.4393]
[1730828988177,0.40724,2455.7,2455.4,0.4393]
[1730828988483,0.40724,2455.7,2455.4,0.84658]
[1730828991286,0.87772,2455.8,2455.5,0.40726]
[1730828991889,0.4705,2455.8,2455.4,0.4393]
[1730828992189,0.40723,2455.7,2455.4,0.84657]
[1730828992777,0.4705,2455.8,2455.5,0.40726]
[1730828993774,0.40723,2455.7,2455.5,0.40726]
[1730828995178,3.17682122,2455.7,2455.4,0.4393]
[1730828995379,0.40726,2455.5,2455.4,0.4393]
[1730828997688,0.40725,2455.6,2455.4,0.84658]
[1730828997897,0.40725,2455.6,2455.4,0.4393]
[1730828998085,0.4705,2455.8,2455.4,0.4393]
[1730828998286,0.40726,2455.5,2455.4,0.4393]
[1730829000390,3.17682122,2455.7,2455.4,0.4393]
[1730829000586,3.58406122,2455.7,2455.4,0.4393]
[1730829000888,3.6651,2455.9,2455.4,0.4393]
[1730829000889,3.2078,2455.9,2455.4,0.4393]
[1730829001094,3.61501,2455.9,2455.6,0.40724]
[1730829001592,3.61501,2455.9,2455.7,0.40723]
[1730829001794,3.17682122,2456.0,2455.8,0.4072]
[1730829002090,3.17682122,2456.0,2455.7,0.40722]
[1730829002292,3.17682122,2456.0,2455.8,0.4072]
[1730829002586,3.17682122,2456.0,2455.7,0.40723]
[1730829002792,0.4072,2455.9,2455.7,0.40723]
[1730829003100,3.2078,2455.9,2455.4,0.4393]
[1730829003291,3.17682122,2455.8,2455.4,0.4393]
[1730829003592,0.40726,2455.6,2455.4,0.4393]
[1730829004187,0.40726,2455.6,2455.4,0.84658]
[1730829004389,3.17682122,2455.8,2455.4,0.4393]
[1730829004594,0.40723,2455.7,2455.5,0.40726]
[1730829005095,0.40724,2455.7,2455.4,0.84657]
[1730829005585,3.17682122,2455.8,2455.4,0.4393]
[1730829006094,3.58404122,2455.8,2455.6,0.40724]
[1730829006285,3.58404122,2455.8,2455.5,0.40726]
[1730829006490,0.40723,2455.7,2455.5,0.40726]
[1730829006689,3.17682122,2455.8,2455.5,0.40726]
[1730829006908,3.17682122,2455.8,2455.6,0.40725]
[1730829007192,3.2078,2455.9,2455.8,0.40721]
[1730829008692,3.2078,2455.9,2455.8,4.47921]
[1730829010387,7.2798,2455.9,2455.4,0.4393]
[1730829010590,0.40726,2455.5,2455.4,0.4393]
[1730829010791,0.40726,2455.5,2455.3,3.648]
[1730829011103,3.17682122,2455.6,2455.4,0.40728]
[1730829011595,3.17682122,2455.6,2455.3,3.648]
[1730829011793,3.17682122,2455.6,2455.4,0.40728]
[1730829011982,0.40724,2455.7,2455.4,0.40727]
[1730829012382,4.54052122,2455.8,2455.4,0.40727]
[1730829012587,0.40725,2455.6,2455.3,4.05529]
[1730829012789,0.40727,2455.5,2455.3,3.648]
[1730829013089,1.3637,2455.8,2455.0,3.2078]
[1730829013090,3.17682122,2455.4,2455.0,3.2078]
[1730829013394,3.58416122,2455.1,2454.9,0.462]
[1730829013595,3.17682122,2455.1,2454.9,0.462]
[1730829013892,40.8,2455.0,2454.9,0.462]
[1730829014488,3.17682122,2455.5,2454.9,7.7434]
[1730829014689,3.58409122,2455.5,2455.1,0.40732]
[1730829014991,40.8,2455.4,2455.2,0.4073]
[1730829015197,40.8,2455.4,2455.3,0.4073]
[1730829015390,40.8,2455.4,2455.0,0.4497]
[1730829015591,3.17682122,2455.5,2455.0,0.4497]
[1730829015797,3.17682122,2455.5,2455.3,0.40729]
[1730829016497,3.58409122,2455.5,2455.1,0.40732]
[1730829016996,3.17682122,2455.5,2455.3,0.40729]
[1730829017191,3.17682122,2455.5,2455.2,0.4073]